[Event "*** Titled Tuesday Blitz"]
[Site "Chess.com"]
[Date "2020.10.27"]
[Round "7"]
[White "esapunov"]
[Black "dropstoneDP"]
[Result "1/2-1/2"]
[WhiteElo "2677"]
[BlackElo "2944"]
[TimeControl "180+1"]
[EndTime "11:19:57 PDT"]
[Termination "Game drawn by repetition"]

1. c4 {[%clk 0:03:00.9]} 1... Nf6 {[%clk 0:03:00.3]} 2. Nf3 {[%clk 0:03:00.7]}
2... g6 {[%clk 0:03:00.2]} 3. Nc3 {[%clk 0:03:00.2]} 3... Bg7 {[%clk 0:03:00.8]}
4. e4 {[%clk 0:03:00]} 4... e5 {[%clk 0:03:01.5]} 5. d4 {[%clk 0:02:59.1]} 5...
exd4 {[%clk 0:03:01.5]} 6. Nxd4 {[%clk 0:02:59.5]} 6... O-O {[%clk 0:03:02.3]}
7. Be2 {[%clk 0:02:59.9]} 7... Re8 {[%clk 0:03:02.8]} 8. f3 {[%clk 0:02:52.4]}
8... c6 {[%clk 0:03:03.4]} 9. Bg5 {[%clk 0:02:36.9]} 9... Qb6 {[%clk 0:03:00.3]}
10. Nb3 {[%clk 0:02:34.1]} 10... Qd8 {[%clk 0:03:00.1]} 11. Qd2 {[%clk
0:02:32.5]} 11... d6 {[%clk 0:02:55.5]} 12. O-O {[%clk 0:02:31.6]} 12... a5
{[%clk 0:02:54.1]} 13. Na4 {[%clk 0:02:22]} 13... Nbd7 {[%clk 0:02:48.5]} 14.
Rfd1 {[%clk 0:02:18.5]} 14... d5 {[%clk 0:02:44.7]} 15. cxd5 {[%clk 0:02:15.2]}
15... cxd5 {[%clk 0:02:44.7]} 16. exd5 {[%clk 0:02:15.4]} 16... Nb6 {[%clk
0:02:28.2]} 17. Nc3 {[%clk 0:01:57.2]} 17... a4 {[%clk 0:02:26.7]} 18. Nc5
{[%clk 0:01:55.2]} 18... Qc7 {[%clk 0:02:22.1]} 19. N5e4 {[%clk 0:01:52.6]}
19... Nxe4 {[%clk 0:02:19.6]} 20. Nxe4 {[%clk 0:01:52.2]} 20... Nc4 {[%clk
0:02:11.8]} 21. Bxc4 {[%clk 0:01:47.6]} 21... Qxc4 {[%clk 0:02:12.7]} 22. Nf6+
{[%clk 0:01:29.3]} 22... Bxf6 {[%clk 0:02:12.1]} 23. Bxf6 {[%clk 0:01:29.7]}
23... Ra6 {[%clk 0:02:12.8]} 24. d6 {[%clk 0:01:26.5]} 24... Qc5+ {[%clk
0:01:40.9]} 25. Kh1 {[%clk 0:01:18.1]} 25... Qf5 {[%clk 0:01:21.7]} 26. Be7
{[%clk 0:01:11.6]} 26... Bd7 {[%clk 0:01:20.6]} 27. Rac1 {[%clk 0:01:10.9]}
27... Rc6 {[%clk 0:01:18.3]} 28. Rxc6 {[%clk 0:01:08]} 28... bxc6 {[%clk
0:01:12.2]} 29. Qc3 {[%clk 0:01:06.6]} 29... Qe6 {[%clk 0:00:55.7]} 30. a3
{[%clk 0:01:01.6]} 30... h5 {[%clk 0:00:47.4]} 31. Re1 {[%clk 0:00:59]} 31...
Qd5 {[%clk 0:00:41.7]} 32. h3 {[%clk 0:00:56.4]} 32... c5 {[%clk 0:00:38.7]} 33.
Re5 {[%clk 0:00:51.5]} 33... Qd1+ {[%clk 0:00:25.4]} 34. Kh2 {[%clk 0:00:51.1]}
34... Rc8 {[%clk 0:00:21.6]} 35. Qe3 {[%clk 0:00:36.5]} 35... Kh7 {[%clk
0:00:15.8]} 36. Qg5 {[%clk 0:00:29.4]} 36... Qd4 {[%clk 0:00:11]} 37. Qf6 {[%clk
0:00:27.2]} 37... Kg8 {[%clk 0:00:08.8]} 38. Qg5 {[%clk 0:00:21]} 38... Re8
{[%clk 0:00:06.4]} 39. Re4 {[%clk 0:00:13.8]} 39... Qd3 {[%clk 0:00:01.7]} 40.
Bf6 {[%clk 0:00:13]} 40... Qxd6+ {[%clk 0:00:01.8]} 41. Be5 {[%clk 0:00:09.6]}
41... Qe7 {[%clk 0:00:01.7]} 42. Qf4 {[%clk 0:00:08.1]} 42... Qe6 {[%clk
0:00:01.3]} 43. Bc3 {[%clk 0:00:07.8]} 43... Qf5 {[%clk 0:00:01.5]} 44. Rxe8+
{[%clk 0:00:06.6]} 44... Bxe8 {[%clk 0:00:01.8]} 45. Qd6 {[%clk 0:00:06.5]}
45... f6 {[%clk 0:00:01.8]} 46. Qe7 {[%clk 0:00:06.2]} 46... Bf7 {[%clk
0:00:01.8]} 47. h4 {[%clk 0:00:06]} 47... Qf4+ {[%clk 0:00:02.1]} 48. Kh3 {[%clk
0:00:05.3]} 48... Qf5+ {[%clk 0:00:02.8]} 49. Kg3 {[%clk 0:00:05.5]} 49... g5
{[%clk 0:00:03]} 50. Bxf6 {[%clk 0:00:04.4]} 50... Qf4+ {[%clk 0:00:02.8]} 51.
Kf2 {[%clk 0:00:04.6]} 51... Qd2+ {[%clk 0:00:02.1]} 52. Kg3 {[%clk 0:00:04.7]}
52... Qf4+ {[%clk 0:00:02.4]} 53. Kf2 {[%clk 0:00:04.9]} 53... Qd2+ {[%clk
0:00:03]} 54. Kg3 {[%clk 0:00:05.4]} 54... Qf4+ {[%clk 0:00:02.5]} 1/2-1/2

[Event "*** Titled Tuesday Blitz"]
[Site "Chess.com"]
[Date "2020.10.27"]
[Round "7"]
[White "TotsukaBlade"]
[Black "CheckThis4"]
[Result "1/2-1/2"]
[WhiteElo "2437"]
[BlackElo "2569"]
[TimeControl "180+1"]
[EndTime "11:19:57 PDT"]
[Termination "Game drawn by repetition"]

1. e4 {[%clk 0:03:00.9]} 1... c5 {[%clk 0:02:59.1]} 2. Nf3 {[%clk 0:03:00.9]}
2... d6 {[%clk 0:02:59.1]} 3. Bb5+ {[%clk 0:03:01.2]} 3... Nd7 {[%clk
0:02:58.3]} 4. Ba4 {[%clk 0:03:01.2]} 4... Nf6 {[%clk 0:02:57.2]} 5. O-O {[%clk
0:03:01.1]} 5... g6 {[%clk 0:02:57.1]} 6. Re1 {[%clk 0:02:59.2]} 6... Bg7 {[%clk
0:02:57.1]} 7. c3 {[%clk 0:02:59.7]} 7... O-O {[%clk 0:02:56.9]} 8. d4 {[%clk
0:02:59.6]} 8... a6 {[%clk 0:02:56.4]} 9. Bc2 {[%clk 0:02:52.5]} 9... e5 {[%clk
0:02:47.2]} 10. dxe5 {[%clk 0:02:46.6]} 10... Nxe5 {[%clk 0:02:43.5]} 11. Nxe5
{[%clk 0:02:43.8]} 11... dxe5 {[%clk 0:02:44.4]} 12. c4 {[%clk 0:02:43.2]} 12...
Bg4 {[%clk 0:02:36.3]} 13. Qxd8 {[%clk 0:02:40.1]} 13... Raxd8 {[%clk
0:02:33.3]} 14. Nc3 {[%clk 0:02:40.1]} 14... Nd7 {[%clk 0:02:07.4]} 15. Nd5
{[%clk 0:02:26.1]} 15... Be6 {[%clk 0:02:04]} 16. Be3 {[%clk 0:02:06.1]} 16...
f5 {[%clk 0:02:00.1]} 17. exf5 {[%clk 0:02:01.8]} 17... gxf5 {[%clk 0:01:56.6]}
18. Bg5 {[%clk 0:02:01.9]} 18... Bxd5 {[%clk 0:01:42]} 19. Bxd8 {[%clk
0:01:59.6]} 19... Bxc4 {[%clk 0:01:42.1]} 20. Ba5 {[%clk 0:01:43.7]} 20... b5
{[%clk 0:01:34.9]} 21. Rad1 {[%clk 0:01:36.5]} 21... Be6 {[%clk 0:01:28.5]} 22.
Rd6 {[%clk 0:01:29.3]} 22... Kf7 {[%clk 0:01:28.1]} 23. Rxa6 {[%clk 0:01:27.8]}
23... e4 {[%clk 0:01:27.4]} 24. Bc3 {[%clk 0:01:26.3]} 24... Bxc3 {[%clk
0:01:22]} 25. bxc3 {[%clk 0:01:26.3]} 25... Ne5 {[%clk 0:01:16.7]} 26. f3 {[%clk
0:01:11.6]} 26... Rd8 {[%clk 0:00:59.9]} 27. fxe4 {[%clk 0:00:59.6]} 27... f4
{[%clk 0:01:00]} 28. Rd1 {[%clk 0:00:56.6]} 28... Rg8 {[%clk 0:00:59.6]} 29.
Rdd6 {[%clk 0:00:46.6]} 29... Rg6 {[%clk 0:00:49]} 30. Ra7+ {[%clk 0:00:33]}
30... Kf6 {[%clk 0:00:48.6]} 31. Kf1 {[%clk 0:00:25.8]} 31... Nc4 {[%clk
0:00:46.2]} 32. e5+ {[%clk 0:00:20]} 32... Kxe5 {[%clk 0:00:43.2]} 33. Bxg6
{[%clk 0:00:20.3]} 33... hxg6 {[%clk 0:00:37.6]} 34. Rc6 {[%clk 0:00:18.3]}
34... Ne3+ {[%clk 0:00:32.3]} 35. Kf2 {[%clk 0:00:16.5]} 35... Kd5 {[%clk
0:00:32.5]} 36. Rca6 {[%clk 0:00:15.9]} 36... Bf5 {[%clk 0:00:31.3]} 37. g3
{[%clk 0:00:15.2]} 37... Nd1+ {[%clk 0:00:30]} 38. Kf3 {[%clk 0:00:14.7]} 38...
fxg3 {[%clk 0:00:29.3]} 39. hxg3 {[%clk 0:00:14.8]} 39... Nxc3 {[%clk
0:00:29.4]} 40. g4 {[%clk 0:00:15.1]} 40... Be4+ {[%clk 0:00:29.8]} 41. Ke3
{[%clk 0:00:15.5]} 41... Bb1 {[%clk 0:00:26.1]} 42. a3 {[%clk 0:00:14]} 42...
Kc4 {[%clk 0:00:26.1]} 43. Kd2 {[%clk 0:00:12.4]} 43... Be4 {[%clk 0:00:22.4]}
44. Re7 {[%clk 0:00:10.5]} 44... Bb1 {[%clk 0:00:20.5]} 45. Re3 {[%clk
0:00:09.6]} 45... Ne4+ {[%clk 0:00:19.9]} 46. Kc1 {[%clk 0:00:08.7]} 46... Bd3
{[%clk 0:00:19.7]} 47. Ra8 {[%clk 0:00:08.3]} 47... Nc3 {[%clk 0:00:17.8]} 48.
Rd8 {[%clk 0:00:07.3]} 48... Be4 {[%clk 0:00:16.6]} 49. Rxe4+ {[%clk 0:00:06.3]}
49... Nxe4 {[%clk 0:00:16.3]} 50. Rg8 {[%clk 0:00:07.2]} 50... g5 {[%clk
0:00:16.5]} 51. Re8 {[%clk 0:00:07]} 51... Kd4 {[%clk 0:00:16.2]} 52. Kb2 {[%clk
0:00:06.6]} 52... Nf2 {[%clk 0:00:14.7]} 53. Rg8 {[%clk 0:00:06.6]} 53... Nxg4
{[%clk 0:00:14.2]} 54. Rxg5 {[%clk 0:00:06.7]} 54... Ne3 {[%clk 0:00:14.8]} 55.
Rg8 {[%clk 0:00:06.7]} 55... Nc4+ {[%clk 0:00:14.2]} 56. Ka2 {[%clk 0:00:07.3]}
56... Kc3 {[%clk 0:00:13.4]} 57. Rg3+ {[%clk 0:00:06.8]} 57... Kd4 {[%clk
0:00:13.5]} 58. Rg4+ {[%clk 0:00:07.1]} 58... Kc3 {[%clk 0:00:13.5]} 59. Rg3+
{[%clk 0:00:07]} 59... Kd4 {[%clk 0:00:13.8]} 60. Rg4+ {[%clk 0:00:07.5]} 60...
Kc3 {[%clk 0:00:14.1]} 61. Rg3+ {[%clk 0:00:08]} 1/2-1/2

[Event "*** Titled Tuesday Blitz"]
[Site "Chess.com"]
[Date "2020.10.27"]
[Round "7"]
[White "garfio2017"]
[Black "madmax011"]
[Result "0-1"]
[WhiteElo "2239"]
[BlackElo "1864"]
[TimeControl "180+1"]
[EndTime "11:19:58 PDT"]
[Termination "madmax011 won on time"]

1. e4 {[%clk 0:03:00.6]} 1... c5 {[%clk 0:02:59.5]} 2. g3 {[%clk 0:02:57.6]}
2... Nf6 {[%clk 0:02:58.6]} 3. Bg2 {[%clk 0:02:57.6]} 3... d6 {[%clk 0:02:58.5]}
4. Ne2 {[%clk 0:02:55.4]} 4... Nc6 {[%clk 0:02:58.5]} 5. O-O {[%clk 0:02:55.6]}
5... g6 {[%clk 0:02:58.2]} 6. c3 {[%clk 0:02:55.3]} 6... Bg7 {[%clk 0:02:56.8]}
7. d4 {[%clk 0:02:52.2]} 7... cxd4 {[%clk 0:02:56.3]} 8. cxd4 {[%clk 0:02:51.6]}
8... O-O {[%clk 0:02:56.2]} 9. Nbc3 {[%clk 0:02:51.4]} 9... a6 {[%clk
0:02:50.2]} 10. h3 {[%clk 0:02:45.9]} 10... Qc7 {[%clk 0:02:49.9]} 11. Be3
{[%clk 0:02:44.4]} 11... Rd8 {[%clk 0:02:33.3]} 12. Rc1 {[%clk 0:02:44.2]} 12...
Qd7 {[%clk 0:02:30.1]} 13. a4 {[%clk 0:02:38.3]} 13... b5 {[%clk 0:02:20.3]} 14.
axb5 {[%clk 0:02:34.3]} 14... axb5 {[%clk 0:02:20.8]} 15. Nxb5 {[%clk
0:02:32.4]} 15... Rb8 {[%clk 0:02:18.3]} 16. Nbc3 {[%clk 0:02:23.9]} 16... Rxb2
{[%clk 0:02:12.2]} 17. Qa4 {[%clk 0:02:21.6]} 17... Rb4 {[%clk 0:02:08.4]} 18.
Qa3 {[%clk 0:02:19.8]} 18... Rb8 {[%clk 0:01:52.2]} 19. f4 {[%clk 0:02:02.7]}
19... Bb7 {[%clk 0:01:46.6]} 20. Rfd1 {[%clk 0:02:00.9]} 20... Ra8 {[%clk
0:01:37.7]} 21. Qb2 {[%clk 0:01:57.8]} 21... Ba6 {[%clk 0:01:35.1]} 22. e5
{[%clk 0:01:45.5]} 22... Ne8 {[%clk 0:01:28.6]} 23. d5 {[%clk 0:01:33.3]} 23...
Na5 {[%clk 0:01:20.8]} 24. Bd4 {[%clk 0:01:19.8]} 24... Bxe2 {[%clk 0:01:11.9]}
25. Qxe2 {[%clk 0:01:08.7]} 25... dxe5 {[%clk 0:01:10.7]} 26. fxe5 {[%clk
0:01:07]} 26... Rac8 {[%clk 0:01:09.5]} 27. Bb6 {[%clk 0:00:55.8]} 27... Nb3
{[%clk 0:00:57.4]} 28. Bxd8 {[%clk 0:00:36.8]} 28... Nxc1 {[%clk 0:00:55.4]} 29.
Rxc1 {[%clk 0:00:36.3]} 29... Rxd8 {[%clk 0:00:54.3]} 30. Rf1 {[%clk 0:00:31.1]}
30... Qc7 {[%clk 0:00:46.8]} 31. Qf3 {[%clk 0:00:22.3]} 31... f5 {[%clk
0:00:33.8]} 32. exf6 {[%clk 0:00:17.5]} 32... Nxf6 {[%clk 0:00:33.7]} 33. d6
{[%clk 0:00:14.8]} 33... Qxd6 {[%clk 0:00:28.6]} 34. Rd1 {[%clk 0:00:12.9]}
34... Qb6+ {[%clk 0:00:26.4]} 35. Kh2 {[%clk 0:00:11.7]} 35... Rxd1 {[%clk
0:00:24.4]} 36. Nxd1 {[%clk 0:00:12.4]} 36... Qd6 {[%clk 0:00:22.5]} 37. Ne3
{[%clk 0:00:11.7]} 37... h6 {[%clk 0:00:21.7]} 38. h4 {[%clk 0:00:11.2]} 38...
Kh7 {[%clk 0:00:20.7]} 39. Bh3 {[%clk 0:00:08.3]} 39... Qd2+ {[%clk 0:00:17.9]}
40. Bg2 {[%clk 0:00:06.8]} 40... Qxe3 {[%clk 0:00:16.8]} 41. Qb7 {[%clk
0:00:05.1]} 41... Ng4+ {[%clk 0:00:16.4]} 42. Kh3 {[%clk 0:00:04.5]} 42... Nf2+
{[%clk 0:00:16.3]} 43. Kh2 {[%clk 0:00:05]} 43... Ng4+ {[%clk 0:00:15.5]} 44.
Kh3 {[%clk 0:00:05.3]} 44... Qe6 {[%clk 0:00:15.2]} 45. Qd5 {[%clk 0:00:02]}
45... Qxd5 {[%clk 0:00:14.9]} 46. Bxd5 {[%clk 0:00:02.9]} 46... Nf2+ {[%clk
0:00:15.8]} 47. Kg2 {[%clk 0:00:03.1]} 47... Nd3 {[%clk 0:00:16.3]} 48. Kf3
{[%clk 0:00:03.3]} 48... Ne5+ {[%clk 0:00:16.4]} 49. Ke4 {[%clk 0:00:03.1]}
49... g5 {[%clk 0:00:16.3]} 50. hxg5 {[%clk 0:00:02.7]} 50... hxg5 {[%clk
0:00:17.2]} 51. Kf5 {[%clk 0:00:03.5]} 51... Kh6 {[%clk 0:00:16.4]} 52. Ke6
{[%clk 0:00:03.3]} 52... Bf6 {[%clk 0:00:16.7]} 53. Be4 {[%clk 0:00:03]} 53...
Kh5 {[%clk 0:00:16.5]} 0-1

[Event "*** Titled Tuesday Blitz"]
[Site "Chess.com"]
[Date "2020.10.27"]
[Round "7"]
[White "chenxiaoyuer"]
[Black "pavelalexandru07"]
[Result "1-0"]
[WhiteElo "2516"]
[BlackElo "2349"]
[TimeControl "180+1"]
[EndTime "11:20:00 PDT"]
[Termination "chenxiaoyuer won by checkmate"]

1. e4 {[%clk 0:03:00.9]} 1... c5 {[%clk 0:02:57]} 2. Nf3 {[%clk 0:03:00.4]} 2...
d6 {[%clk 0:02:56.6]} 3. d4 {[%clk 0:03:00.3]} 3... cxd4 {[%clk 0:02:56.7]} 4.
Nxd4 {[%clk 0:03:01.2]} 4... Nf6 {[%clk 0:02:57.1]} 5. Nc3 {[%clk 0:03:01.5]}
5... a6 {[%clk 0:02:57.6]} 6. Be2 {[%clk 0:03:01.4]} 6... e5 {[%clk 0:02:57.6]}
7. Nb3 {[%clk 0:03:01.5]} 7... Be6 {[%clk 0:02:57.7]} 8. O-O {[%clk 0:03:00.4]}
8... Be7 {[%clk 0:02:58]} 9. f4 {[%clk 0:02:59.7]} 9... exf4 {[%clk 0:02:53.5]}
10. Bxf4 {[%clk 0:03:00.6]} 10... Nc6 {[%clk 0:02:54]} 11. Kh1 {[%clk
0:02:53.7]} 11... O-O {[%clk 0:02:53.4]} 12. a4 {[%clk 0:02:52]} 12... Rc8
{[%clk 0:02:50.4]} 13. Qe1 {[%clk 0:02:49.9]} 13... Re8 {[%clk 0:02:43.3]} 14.
Qg3 {[%clk 0:02:47.6]} 14... Ne5 {[%clk 0:02:27.4]} 15. Nd4 {[%clk 0:02:43.3]}
15... Ng6 {[%clk 0:02:00.7]} 16. Be3 {[%clk 0:02:39.8]} 16... Kh8 {[%clk
0:01:41.2]} 17. Nf5 {[%clk 0:02:34.6]} 17... Bxf5 {[%clk 0:00:51.3]} 18. exf5
{[%clk 0:02:32.4]} 18... Ne5 {[%clk 0:00:49.1]} 19. Bd4 {[%clk 0:02:22.3]} 19...
Bf8 {[%clk 0:00:43.9]} 20. Bd3 {[%clk 0:02:18.5]} 20... Qc7 {[%clk 0:00:39.7]}
21. Rae1 {[%clk 0:02:15.1]} 21... Rcd8 {[%clk 0:00:28.2]} 22. Qh4 {[%clk
0:02:04.8]} 22... Be7 {[%clk 0:00:22.8]} 23. Qh3 {[%clk 0:02:03.3]} 23... Bf8
{[%clk 0:00:20.7]} 24. Ne4 {[%clk 0:01:52.8]} 24... Nxe4 {[%clk 0:00:20.2]} 25.
Rxe4 {[%clk 0:01:48.7]} 25... f6 {[%clk 0:00:19.4]} 26. Rh4 {[%clk 0:01:46.6]}
26... h6 {[%clk 0:00:19.7]} 27. Re4 {[%clk 0:01:32.1]} 27... Nxd3 {[%clk
0:00:19.8]} 28. Qxd3 {[%clk 0:01:30.2]} 28... Rxe4 {[%clk 0:00:20.1]} 29. Qxe4
{[%clk 0:01:31.1]} 29... Rc8 {[%clk 0:00:20.6]} 30. c3 {[%clk 0:01:30.3]} 30...
Qc6 {[%clk 0:00:20.8]} 31. Qc2 {[%clk 0:01:28.1]} 31... d5 {[%clk 0:00:20.5]}
32. Re1 {[%clk 0:01:25.7]} 32... Re8 {[%clk 0:00:20.9]} 33. Ra1 {[%clk
0:00:55.3]} 33... Re4 {[%clk 0:00:20.7]} 34. Qd3 {[%clk 0:00:49.7]} 34... Qd7
{[%clk 0:00:20.9]} 35. Qf3 {[%clk 0:00:48.1]} 35... Bd6 {[%clk 0:00:19.2]} 36.
g3 {[%clk 0:00:45.8]} 36... Be5 {[%clk 0:00:18.2]} 37. Bxe5 {[%clk 0:00:39.1]}
37... Rxe5 {[%clk 0:00:18.2]} 38. g4 {[%clk 0:00:35.2]} 38... Qc6 {[%clk
0:00:15.6]} 39. Kg2 {[%clk 0:00:32.2]} 39... Qc4 {[%clk 0:00:15.6]} 40. Kf2
{[%clk 0:00:29.2]} 40... Re4 {[%clk 0:00:15.6]} 41. Kg3 {[%clk 0:00:25.7]} 41...
Qc7+ {[%clk 0:00:15.8]} 42. Kg2 {[%clk 0:00:24.5]} 42... Qe5 {[%clk 0:00:16.1]}
43. Rf1 {[%clk 0:00:21.3]} 43... Qd6 {[%clk 0:00:13.6]} 44. Rd1 {[%clk
0:00:18.3]} 44... Qc6 {[%clk 0:00:13.5]} 45. a5 {[%clk 0:00:15.6]} 45... Qc5
{[%clk 0:00:13.4]} 46. b3 {[%clk 0:00:10.8]} 46... Qxa5 {[%clk 0:00:11.9]} 47.
c4 {[%clk 0:00:08.9]} 47... Qa2+ {[%clk 0:00:10.7]} 48. Kh1 {[%clk 0:00:07.6]}
48... Qc2 {[%clk 0:00:05]} 49. cxd5 {[%clk 0:00:04.8]} 49... Rf4 {[%clk
0:00:05]} 50. Qxf4 {[%clk 0:00:02.4]} 50... Qxd1+ {[%clk 0:00:05.3]} 51. Kg2
{[%clk 0:00:03.3]} 51... Qxd5+ {[%clk 0:00:05.8]} 52. Kg3 {[%clk 0:00:03.6]}
52... Qxb3+ {[%clk 0:00:06.5]} 53. Kh4 {[%clk 0:00:04]} 53... Qd1 {[%clk
0:00:05]} 54. Kh5 {[%clk 0:00:03.4]} 54... Qg1 {[%clk 0:00:04.5]} 55. Kg6 {[%clk
0:00:02.9]} 55... Qxg4+ {[%clk 0:00:02.1]} 56. Qxg4 {[%clk 0:00:03]} 56... Kg8
{[%clk 0:00:02.7]} 57. Qe4 {[%clk 0:00:03.9]} 57... Kh8 {[%clk 0:00:03.1]} 58.
Qe8# {[%clk 0:00:04.1]} 1-0

[Event "*** Titled Tuesday Blitz"]
[Site "Chess.com"]
[Date "2020.10.27"]
[Round "7"]
[White "QuintilianoR"]
[Black "ARTHURMOTIVATOR"]
[Result "1-0"]
[WhiteElo "2652"]
[BlackElo "2363"]
[TimeControl "180+1"]
[EndTime "11:20:00 PDT"]
[Termination "QuintilianoR won by resignation"]

1. Nf3 {[%clk 0:03:00.9]} 1... Nf6 {[%clk 0:02:58.2]} 2. c4 {[%clk 0:03:00.5]}
2... g6 {[%clk 0:02:46.8]} 3. Nc3 {[%clk 0:03:00.2]} 3... Bg7 {[%clk 0:02:45.3]}
4. d4 {[%clk 0:02:58.7]} 4... c5 {[%clk 0:02:40.5]} 5. d5 {[%clk 0:02:56.9]}
5... O-O {[%clk 0:02:39.1]} 6. e4 {[%clk 0:02:56.1]} 6... d6 {[%clk 0:02:39.4]}
7. h3 {[%clk 0:02:55.4]} 7... e6 {[%clk 0:02:39.1]} 8. Bd3 {[%clk 0:02:54.3]}
8... Na6 {[%clk 0:02:39.6]} 9. O-O {[%clk 0:02:52.9]} 9... e5 {[%clk 0:02:39.8]}
10. a3 {[%clk 0:02:50.9]} 10... h6 {[%clk 0:02:35.1]} 11. Bd2 {[%clk 0:02:47.4]}
11... Nh7 {[%clk 0:02:30.9]} 12. Qc2 {[%clk 0:02:01.7]} 12... f5 {[%clk
0:02:24.9]} 13. exf5 {[%clk 0:01:51]} 13... gxf5 {[%clk 0:02:21.6]} 14. Rae1
{[%clk 0:01:49.9]} 14... e4 {[%clk 0:02:09.8]} 15. Nxe4 {[%clk 0:01:48.3]} 15...
fxe4 {[%clk 0:02:08.5]} 16. Bxe4 {[%clk 0:01:49.2]} 16... Nf6 {[%clk 0:02:03.9]}
17. Bg6 {[%clk 0:01:25.7]} 17... Nc7 {[%clk 0:01:43.6]} 18. Nh4 {[%clk
0:01:11.4]} 18... b5 {[%clk 0:01:11.5]} 19. b3 {[%clk 0:01:08.2]} 19... Rb8
{[%clk 0:01:04.7]} 20. Re3 {[%clk 0:01:03.1]} 20... bxc4 {[%clk 0:01:00.5]} 21.
bxc4 {[%clk 0:01:01.2]} 21... Bd7 {[%clk 0:00:47]} 22. Rg3 {[%clk 0:00:52.9]}
22... Kh8 {[%clk 0:00:34.5]} 23. Bc3 {[%clk 0:00:21.9]} 23... Nce8 {[%clk
0:00:19.6]} 24. Bf5 {[%clk 0:00:18.1]} 24... Kg8 {[%clk 0:00:17]} 25. Ng6 {[%clk
0:00:13.7]} 25... Rf7 {[%clk 0:00:16.9]} 26. Be6 {[%clk 0:00:14]} 26... Bxe6
{[%clk 0:00:15.1]} 27. dxe6 {[%clk 0:00:14.9]} 27... Rfb7 {[%clk 0:00:14.1]} 28.
Qf5 {[%clk 0:00:15.2]} 28... a6 {[%clk 0:00:11.6]} 29. Nf4 {[%clk 0:00:15]}
29... Kh8 {[%clk 0:00:09.7]} 30. Ng6+ {[%clk 0:00:14.6]} 30... Kg8 {[%clk
0:00:09.6]} 31. Re1 {[%clk 0:00:15.5]} 31... Re7 {[%clk 0:00:07.5]} 32. Nf4
{[%clk 0:00:14.4]} 32... Rb3 {[%clk 0:00:05.4]} 33. Ree3 {[%clk 0:00:11.2]}
33... Rxc3 {[%clk 0:00:04.1]} 34. Rxc3 {[%clk 0:00:10.6]} 34... Nc7 {[%clk
0:00:02.5]} 35. Rg6 {[%clk 0:00:10.1]} 35... Qe8 {[%clk 0:00:02.9]} 36. Rcg3
{[%clk 0:00:09.9]} 36... Nxe6 {[%clk 0:00:03.2]} 37. Nxe6 {[%clk 0:00:09.3]}
37... Rxe6 {[%clk 0:00:03.7]} 38. Rxg7+ {[%clk 0:00:09.7]} 38... Kf8 {[%clk
0:00:04.6]} 39. Rg8+ {[%clk 0:00:09.7]} 39... Ke7 {[%clk 0:00:03.1]} 40. Rxe8+
{[%clk 0:00:09.6]} 40... Nxe8 {[%clk 0:00:02.6]} 41. Re3 {[%clk 0:00:09.7]}
41... Rxe3 {[%clk 0:00:02.3]} 42. fxe3 {[%clk 0:00:10.6]} 42... Nf6 {[%clk
0:00:02.8]} 43. Qe4+ {[%clk 0:00:11.3]} 43... Kf7 {[%clk 0:00:02.1]} 44. Qb7+
{[%clk 0:00:07.8]} 44... Ke6 {[%clk 0:00:01.8]} 45. Qxa6 {[%clk 0:00:08.7]}
45... Nd7 {[%clk 0:00:02.6]} 46. Qb5 {[%clk 0:00:09.6]} 46... Ne5 {[%clk
0:00:03.5]} 47. a4 {[%clk 0:00:09.5]} 47... Nf7 {[%clk 0:00:04.4]} 48. a5 {[%clk
0:00:09.6]} 48... Ng5 {[%clk 0:00:05.3]} 49. a6 {[%clk 0:00:10.5]} 49... Ne4
{[%clk 0:00:06.2]} 50. a7 {[%clk 0:00:11.1]} 50... Nc3 {[%clk 0:00:07.1]} 51.
a8=Q {[%clk 0:00:11.5]} 51... Nxb5 {[%clk 0:00:08]} 52. Qc8+ {[%clk 0:00:12]}
52... Ke5 {[%clk 0:00:08.9]} 53. cxb5 {[%clk 0:00:12.4]} 53... Ke4 {[%clk
0:00:08.3]} 54. Qc6+ {[%clk 0:00:13.3]} 54... Kd3 {[%clk 0:00:09.2]} 55. b6
{[%clk 0:00:14]} 55... Kc4 {[%clk 0:00:10.1]} 56. b7 {[%clk 0:00:14.9]} 56...
Kb4 {[%clk 0:00:11]} 57. b8=Q+ {[%clk 0:00:15.1]} 57... Kc4 {[%clk 0:00:11.9]}
58. Qbb5+ {[%clk 0:00:14.9]} 58... Kc3 {[%clk 0:00:11.4]} 59. Qd5 {[%clk
0:00:15.1]} 59... Kc2 {[%clk 0:00:11.1]} 60. Qbb3+ {[%clk 0:00:14.8]} 1-0